[Event "FIDE World Rapid Chess Championship 2021"]
[White "Sadzikowski, Daniel"]
[Black "Blanco Acevedo, Cristobal Jose"]
[WhiteFideId "1132253"]
[BlackFideId "3900525"]
[WhiteElo "2414"]
[BlackElo "2289"]
[Result "1/2-1/2"]
[Round "06"]
[TimeControl "900+10"]
[Date "2021.12.27"]
[WhiteClock "0:00:33"]
[BlackClock "0:01:08"]

1. e4 {[%clk 0:15:00]}  c5 {[%clk 0:15:00]} 2. Nf3 {[%clk 0:15:00]}  Nc6 {[%clk 0:15:00]} 3. Bb5 {[%clk 0:15:28]}  e6 {[%clk 0:15:37]} 4. Bxc6 {[%clk 0:15:28]}  bxc6 {[%clk 0:15:37]} 5. d3 {[%clk 0:15:28]}  Ne7 {[%clk 0:15:37]} 6. Nc3 {[%clk 0:15:18]}  Ng6 {[%clk 0:15:42]} 7. O-O {[%clk 0:13:21]}  e5 {[%clk 0:15:47]} 8. Ne2 {[%clk 0:13:21]}  Be7 {[%clk 0:14:56]} 9. Ng3 {[%clk 0:12:52]}  d6 {[%clk 0:14:31]} 10. Nf5 {[%clk 0:11:04]}  Bf6 {[%clk 0:14:32]} 11. Nd2 {[%clk 0:10:53]}  O-O {[%clk 0:14:37]} 12. Nc4 {[%clk 0:08:41]}  d5 {[%clk 0:11:05]} 13. Nce3 {[%clk 0:08:00]}  c4 {[%clk 0:09:41]} 14. dxc4 {[%clk 0:07:48]}  dxe4 {[%clk 0:07:03]} 15. Ng3 {[%clk 0:06:38]}  Qc7 {[%clk 0:06:53]} 16. b3 {[%clk 0:05:22]}  Be7 {[%clk 0:06:09]} 17. Nef5 {[%clk 0:04:19]}  Bb4 {[%clk 0:06:09]} 18. Qe2 {[%clk 0:04:23]}  Nf4 {[%clk 0:03:38]} 19. Qxe4 {[%clk 0:03:16]}  g6 {[%clk 0:02:52]} 20. Nd4 {[%clk 0:02:26]}  Bc3 {[%clk 0:02:34]} 21. Bxf4 {[%clk 0:01:04]}  exf4 {[%clk 0:01:28]} 22. Nge2 {[%clk 0:01:21]}  Bxa1 {[%clk 0:01:28]} 23. Rxa1 {[%clk 0:01:21]}  Bd7 {[%clk 0:01:28]} 24. Qxf4 {[%clk 0:01:21]}  Qxf4 {[%clk 0:01:28]} 25. Nxf4 {[%clk 0:01:21]}  Rfe8 {[%clk 0:00:51]} 26. Nd3 {[%clk 0:01:31]}  Re4 {[%clk 0:00:51]} 27. Nf3 {[%clk 0:01:31]}  Re2 {[%clk 0:00:51]} 28. Nd4 {[%clk 0:01:04]}  Re4 {[%clk 0:01:00]} 29. Nf3 {[%clk 0:01:04]}  Re2 {[%clk 0:01:00]} 30. Rc1 {[%clk 0:01:04]}  Rd8 {[%clk 0:01:00]} 31. Kf1 {[%clk 0:00:31]}  Re7 {[%clk 0:01:00]} 32. Re1 {[%clk 0:00:31]}  Rxe1+ {[%clk 0:01:00]} 33. Nfxe1 {[%clk 0:00:31]}  f6 {[%clk 0:01:00]} 34. Ke2 {[%clk 0:00:31]}  Kf7 {[%clk 0:01:00]} 35. a4 {[%clk 0:00:31]}  Ke7 {[%clk 0:01:00]} 36. Ke3 {[%clk 0:00:22]}  Kd6 {[%clk 0:01:25]} 37. f3 {[%clk 0:00:22]}  Bf5 {[%clk 0:01:25]} 38. Kd2 {[%clk 0:00:22]}  g5 {[%clk 0:01:25]} 39. Nf2 {[%clk 0:00:22]}  h5 {[%clk 0:01:25]} 40. h3 {[%clk 0:00:22]}  Ke5+ {[%clk 0:01:08]} 41. Ned3+ {[%clk 0:00:33]}  Kd6 {[%clk 0:01:08]} 42. Ke3 {[%clk 0:00:33]}  Re8+ {[%clk 0:01:08]} 43. Kd2 {[%clk 0:00:33]}  Rd8 {[%clk 0:01:08]} 44. Kc3 {[%clk 0:00:33]}  Re8 {[%clk 0:01:08]} 45. Kd2 {[%clk 0:00:33]}  Rd8 {[%clk 0:01:08]} 1/2-1/2


[Site "http://www.Chess.com"]

[Event "FIDE World Rapid Chess Championship 2021"]
[White "Sankalp, Gupta"]
[Black "Saraci, Nderim"]
[WhiteFideId "5097010"]
[BlackFideId "6351921"]
[WhiteElo "2266"]
[BlackElo "2414"]
[Result "1-0"]
[Round "06"]
[TimeControl "900+10"]
[Date "2021.12.27"]
[WhiteClock "0:01:09"]
[BlackClock "0:00:14"]

1. d4 {[%clk 0:15:00]}  d5 {[%clk 0:15:18]} 2. Nf3 {[%clk 0:15:05]}  Nf6 {[%clk 0:15:18]} 3. c3 {[%clk 0:15:05]}  Bf5 {[%clk 0:15:18]} 4. Qb3 {[%clk 0:15:05]}  b6 {[%clk 0:15:18]} 5. c4 {[%clk 0:15:05]}  e6 {[%clk 0:15:18]} 6. Nc3 {[%clk 0:15:05]}  Be7 {[%clk 0:15:11]} 7. g3 {[%clk 0:15:14]}  O-O {[%clk 0:15:11]} 8. Bg2 {[%clk 0:15:27]}  c6 {[%clk 0:14:06]} 9. Ne5 {[%clk 0:15:27]}  Nfd7 {[%clk 0:12:57]} 10. Nd3 {[%clk 0:12:28]}  Bxd3 {[%clk 0:11:37]} 11. exd3 {[%clk 0:11:18]}  Nf6 {[%clk 0:11:37]} 12. O-O {[%clk 0:11:18]}  dxc4 {[%clk 0:10:59]} 13. dxc4 {[%clk 0:11:13]}  Qxd4 {[%clk 0:10:59]} 14. Rd1 {[%clk 0:11:13]}  Qg4 {[%clk 0:09:52]} 15. Be3 {[%clk 0:11:22]}  Nbd7 {[%clk 0:08:26]} 16. h3 {[%clk 0:11:06]}  Qg6 {[%clk 0:07:49]} 17. Bxc6 {[%clk 0:08:23]}  Rad8 {[%clk 0:07:43]} 18. Qa4 {[%clk 0:08:03]}  Ne5 {[%clk 0:04:22]} 19. Bg2 {[%clk 0:08:06]}  Rc8 {[%clk 0:04:22]} 20. Qxa7 {[%clk 0:08:14]}  Bb4 {[%clk 0:01:20]} 21. Qxb6 {[%clk 0:07:48]}  Bxc3 {[%clk 0:01:14]} 22. bxc3 {[%clk 0:07:48]}  Nxc4 {[%clk 0:01:14]} 23. Qa7 {[%clk 0:07:48]}  Nd5 {[%clk 0:01:14]} 24. Bd4 {[%clk 0:07:01]}  Ra8 {[%clk 0:00:43]} 25. Qd7 {[%clk 0:07:01]}  Rfd8 {[%clk 0:00:43]} 26. Qb5 {[%clk 0:07:01]}  Na3 {[%clk 0:00:43]} 27. Qe2 {[%clk 0:03:12]}  Nc2 {[%clk 0:01:08]} 28. Rac1 {[%clk 0:02:12]}  Nxd4 {[%clk 0:00:57]} 29. Rxd4 {[%clk 0:02:12]}  Qf6 {[%clk 0:00:57]} 30. Qd2 {[%clk 0:02:05]}  Rac8 {[%clk 0:00:31]} 31. c4 {[%clk 0:02:05]}  Nb6 {[%clk 0:00:20]} 32. Rxd8+ {[%clk 0:01:25]}  Rxd8 {[%clk 0:00:20]} 33. Qc2 {[%clk 0:01:25]}  Rc8 {[%clk 0:00:20]} 34. c5 {[%clk 0:01:25]}  Nd5 {[%clk 0:00:20]} 35. c6 {[%clk 0:00:51]}  g6 {[%clk 0:00:30]} 36. Bxd5 {[%clk 0:00:51]}  exd5 {[%clk 0:00:30]} 37. c7 {[%clk 0:00:51]}  Qa6 {[%clk 0:00:30]} 38. a4 {[%clk 0:00:35]}  d4 {[%clk 0:00:11]} 39. Qc4 {[%clk 0:00:35]}  Qd6 {[%clk 0:00:11]} 40. a5 {[%clk 0:00:35]}  d3 {[%clk 0:00:11]} 41. Rd1 {[%clk 0:00:35]}  d2 {[%clk 0:00:05]} 42. Qc3 {[%clk 0:00:03]}  Rxc7 {[%clk 0:00:05]} 43. Qxd2 {[%clk 0:00:03]}  Qxd2 {[%clk 0:00:05]} 44. Rxd2 {[%clk 0:00:03]}  Rc1+ {[%clk 0:00:05]} 45. Kg2 {[%clk 0:00:03]}  Ra1 {[%clk 0:00:05]} 46. Rd5 {[%clk 0:00:03]}  h5 {[%clk 0:00:05]} 47. Kf3 {[%clk 0:00:03]}  Ra2 {[%clk 0:00:11]} 48. Ke3 {[%clk 0:00:54]}  Kg7 {[%clk 0:00:11]} 49. Kd4 {[%clk 0:00:54]}  Rxf2 {[%clk 0:00:11]} 50. Kc5 {[%clk 0:00:54]}  Rf3 {[%clk 0:00:11]} 51. a6 {[%clk 0:00:54]}  Rxg3 {[%clk 0:00:14]} 52. a7 {[%clk 0:01:09]}  Ra3 {[%clk 0:00:14]} 53. Kb6 {[%clk 0:01:09]}  Rxa7 {[%clk 0:00:14]} 54. Kxa7 {[%clk 0:01:09]}  Kf6 {[%clk 0:00:14]} 55. Kb6 {[%clk 0:01:09]}  g5 {[%clk 0:00:14]} 56. Kc5 {[%clk 0:01:09]} 1-0


[Site "http://www.Chess.com"]

[Event "FIDE World Rapid Chess Championship 2021"]
[White "Tologontegin, Semetey"]
[Black "Kadric, Denis"]
[WhiteFideId "13800574"]
[BlackFideId "14403803"]
[WhiteElo "2300"]
[BlackElo "2542"]
[Result "1-0"]
[Round "06"]
[TimeControl "900+10"]
[Date "2021.12.27"]
[WhiteClock "0:00:35"]
[BlackClock "0:00:15"]

1. c4 {[%clk 0:15:00]}  g6 {[%clk 0:15:00]} 2. g3 {[%clk 0:15:18]}  Bg7 {[%clk 0:15:17]} 3. Bg2 {[%clk 0:15:18]}  d6 {[%clk 0:15:17]} 4. Nc3 {[%clk 0:15:18]}  Nh6 {[%clk 0:15:17]} 5. h4 {[%clk 0:15:13]}  Nd7 {[%clk 0:14:54]} 6. d3 {[%clk 0:11:37]}  Nf6 {[%clk 0:14:49]} 7. e4 {[%clk 0:10:46]}  c6 {[%clk 0:14:23]} 8. Nge2 {[%clk 0:09:52]}  Nhg4 {[%clk 0:12:41]} 9. O-O {[%clk 0:09:12]}  O-O {[%clk 0:12:18]} 10. d4 {[%clk 0:01:32]}  e5 {[%clk 0:12:17]} 11. dxe5 {[%clk 0:01:32]}  Nxe5 {[%clk 0:11:49]} 12. b3 {[%clk 0:01:00]}  Re8 {[%clk 0:11:49]} 13. Ba3 {[%clk 0:01:00]}  Bf8 {[%clk 0:11:07]} 14. Qd4 {[%clk 0:01:18]}  Qa5 {[%clk 0:09:42]} 15. Bb2 {[%clk 0:01:27]}  a6 {[%clk 0:06:56]} 16. a4 {[%clk 0:00:57]}  Bg4 {[%clk 0:04:36]} 17. f3 {[%clk 0:00:26]}  Be6 {[%clk 0:02:21]} 18. Ba3 {[%clk 0:00:32]}  Rad8 {[%clk 0:02:21]} 19. Rfd1 {[%clk 0:00:32]}  Qc7 {[%clk 0:01:33]} 20. Rac1 {[%clk 0:00:31]}  Qb8 {[%clk 0:01:33]} 21. Kh1 {[%clk 0:00:31]}  Bc8 {[%clk 0:01:33]} 22. Nf4 {[%clk 0:00:31]}  Be7 {[%clk 0:01:11]} 23. Rd2 {[%clk 0:00:21]}  h6 {[%clk 0:01:11]} 24. Rcd1 {[%clk 0:00:21]}  g5 {[%clk 0:01:11]} 25. Nfe2 {[%clk 0:00:18]}  gxh4 {[%clk 0:00:47]} 26. gxh4 {[%clk 0:00:18]}  Ng6 {[%clk 0:00:47]} 27. Qe3 {[%clk 0:00:18]}  Kh7 {[%clk 0:00:47]} 28. f4 {[%clk 0:00:18]}  Ng4 {[%clk 0:00:47]} 29. Qg1 {[%clk 0:00:18]}  Bxh4 {[%clk 0:00:54]} 30. Bxd6 {[%clk 0:00:21]}  Rxd6 {[%clk 0:00:54]} 31. Rxd6 {[%clk 0:00:21]}  Nf2+ {[%clk 0:00:54]} 32. Kh2 {[%clk 0:00:21]}  Nxd1 {[%clk 0:00:54]} 33. Qxd1 {[%clk 0:00:21]}  Be7 {[%clk 0:00:54]} 34. c5 {[%clk 0:00:21]}  Bg4 {[%clk 0:00:54]} 35. e5 {[%clk 0:00:21]}  Nxf4 {[%clk 0:00:53]} 36. Qf1 {[%clk 0:00:25]}  Bxd6 {[%clk 0:00:53]} 37. cxd6 {[%clk 0:00:25]}  Ne6 {[%clk 0:00:15]} 38. Qxf7+ {[%clk 0:00:35]}  Ng7 {[%clk 0:00:15]} 39. Be4+ {[%clk 0:00:35]}  Kh8 {[%clk 0:00:15]} 40. Nf4 {[%clk 0:00:35]}  Re6 {[%clk 0:00:15]} 41. Ng6+ {[%clk 0:00:35]} 1-0


[Site "http://www.Chess.com"]

[Event "FIDE World Rapid Chess Championship 2021"]
[White "Lubczynski, Rafal"]
[Black "Carlsson, Pontus"]
[WhiteFideId "1126091"]
[BlackFideId "1705814"]
[WhiteElo "2289"]
[BlackElo "2436"]
[Result "1/2-1/2"]
[Round "06"]
[TimeControl "900+10"]
[Date "2021.12.27"]
[WhiteClock "0:00:17"]
[BlackClock "0:00:32"]

1. Nf3 {[%clk 0:15:00]}  Nf6 {[%clk 0:15:00]} 2. c4 {[%clk 0:12:09]}  e6 {[%clk 0:15:00]} 3. g3 {[%clk 0:12:09]}  d5 {[%clk 0:15:00]} 4. Bg2 {[%clk 0:12:09]}  dxc4 {[%clk 0:15:00]} 5. Qa4+ {[%clk 0:15:13]}  Nbd7 {[%clk 0:11:49]} 6. O-O {[%clk 0:15:13]}  a6 {[%clk 0:11:49]} 7. Qxc4 {[%clk 0:15:13]}  b5 {[%clk 0:11:49]} 8. Qc2 {[%clk 0:15:13]}  Bb7 {[%clk 0:11:49]} 9. a4 {[%clk 0:14:39]}  c5 {[%clk 0:12:16]} 10. b3 {[%clk 0:14:39]}  Be7 {[%clk 0:12:23]} 11. Bb2 {[%clk 0:13:33]}  O-O {[%clk 0:12:23]} 12. Nc3 {[%clk 0:13:53]}  Qb6 {[%clk 0:11:04]} 13. d3 {[%clk 0:13:37]}  Rac8 {[%clk 0:10:06]} 14. e4 {[%clk 0:12:37]}  c4 {[%clk 0:10:04]} 15. bxc4 {[%clk 0:08:56]}  bxc4 {[%clk 0:09:29]} 16. Rab1 {[%clk 0:07:40]}  cxd3 {[%clk 0:09:35]} 17. Qxd3 {[%clk 0:07:40]}  Qa5 {[%clk 0:04:39]} 18. Qe2 {[%clk 0:05:40]}  Ba8 {[%clk 0:04:39]} 19. Rfc1 {[%clk 0:03:06]}  Bb4 {[%clk 0:03:05]} 20. Na2 {[%clk 0:02:26]}  Rxc1+ {[%clk 0:02:35]} 21. Bxc1 {[%clk 0:02:26]}  Bc5 {[%clk 0:02:35]} 22. Bd2 {[%clk 0:02:07]}  Qxa4 {[%clk 0:02:10]} 23. Nc3 {[%clk 0:02:07]}  Qa3 {[%clk 0:02:03]} 24. e5 {[%clk 0:01:02]}  Ng4 {[%clk 0:02:03]} 25. Nd1 {[%clk 0:01:38]}  Bxf3 {[%clk 0:00:33]} 26. Bxf3 {[%clk 0:01:38]}  Ngxe5 {[%clk 0:00:33]} 27. Be4 {[%clk 0:01:38]}  Be7 {[%clk 0:00:33]} 28. Rb7 {[%clk 0:01:22]}  Qa4 {[%clk 0:00:33]} 29. Ra7 {[%clk 0:01:22]}  Nc5 {[%clk 0:00:33]} 30. Bg2 {[%clk 0:00:33]}  Bf6 {[%clk 0:00:16]} 31. Bc3 {[%clk 0:00:33]}  Ned7 {[%clk 0:00:16]} 32. Bxf6 {[%clk 0:00:06]}  Nxf6 {[%clk 0:00:24]} 33. h3 {[%clk 0:00:06]}  h6 {[%clk 0:00:24]} 34. Nb2 {[%clk 0:00:06]}  Qd4 {[%clk 0:00:24]} 35. Nc4 {[%clk 0:00:06]}  Nd3 {[%clk 0:00:24]} 36. Rc7 {[%clk 0:00:06]}  Nb4 {[%clk 0:00:32]} 37. Ne5 {[%clk 0:00:33]}  Nbd5 {[%clk 0:00:32]} 38. Rb7 {[%clk 0:00:33]}  Nc3 {[%clk 0:00:32]} 39. Qe1 {[%clk 0:00:33]}  Qc5 {[%clk 0:00:32]} 40. Nxf7 {[%clk 0:00:33]}  Rxf7 {[%clk 0:00:32]} 41. Qxe6 {[%clk 0:00:33]}  Qf8 {[%clk 0:00:32]} 42. Rxf7 {[%clk 0:00:33]}  Qxf7 {[%clk 0:00:32]} 43. Qc8+ {[%clk 0:00:33]}  Qe8 {[%clk 0:00:30]} 44. Qxc3 {[%clk 0:00:35]}  Qe6 {[%clk 0:00:30]} 45. Bf1 {[%clk 0:00:35]}  Kh8 {[%clk 0:00:30]} 46. Qa5 {[%clk 0:00:35]}  Qd6 {[%clk 0:00:30]} 47. Qxa6 {[%clk 0:00:35]}  Qxa6 {[%clk 0:00:43]} 48. Bxa6 {[%clk 0:01:15]}  g5 {[%clk 0:00:43]} 49. f3 {[%clk 0:01:15]}  Nh5 {[%clk 0:00:43]} 50. Kf2 {[%clk 0:01:15]}  Kg7 {[%clk 0:00:43]} 51. Be2 {[%clk 0:01:15]}  Kf6 {[%clk 0:00:43]} 52. Bb5 {[%clk 0:01:15]}  Ke7 {[%clk 0:00:43]} 53. Bc6 {[%clk 0:01:15]}  Kf6 {[%clk 0:00:43]} 54. Be8 {[%clk 0:01:15]}  Ng7 {[%clk 0:00:43]} 55. Bd7 {[%clk 0:01:15]}  Ke7 {[%clk 0:01:01]} 56. Bg4 {[%clk 0:01:10]}  Kf6 {[%clk 0:01:01]} 57. Ke3 {[%clk 0:01:10]}  Ke5 {[%clk 0:01:01]} 58. f4+ {[%clk 0:00:30]}  gxf4+ {[%clk 0:00:44]} 59. gxf4+ {[%clk 0:00:30]}  Kf6 {[%clk 0:00:44]} 60. Ke4 {[%clk 0:00:30]}  Ne8 {[%clk 0:00:44]} 61. Kf3 {[%clk 0:00:30]}  Nd6 {[%clk 0:00:44]} 62. Kg3 {[%clk 0:00:12]}  Ne4+ {[%clk 0:00:42]} 63. Kh4 {[%clk 0:00:12]}  Kg6 {[%clk 0:00:42]} 64. Bd1 {[%clk 0:00:12]}  Nf6 {[%clk 0:00:42]} 65. Bc2+ {[%clk 0:00:12]}  Kg7 {[%clk 0:00:42]} 66. Bb1 {[%clk 0:00:17]}  Kf7 {[%clk 0:00:32]} 67. Bc2 {[%clk 0:00:17]} 1/2-1/2


[Site "http://www.Chess.com"]

[Event "FIDE World Rapid Chess Championship 2021"]
[White "Korobov, Anton"]
[Black "Grischuk, Alexander"]
[WhiteFideId "14105730"]
[BlackFideId "4126025"]
[WhiteElo "2689"]
[BlackElo "2763"]
[Result "0-1"]
[Round "07"]
[TimeControl "900+10"]
[Date "2021.12.27"]
[WhiteClock "0:00:36"]
[BlackClock "0:00:29"]

1. d4 {[%clk 0:15:00]}  Nf6 {[%clk 0:15:00]} 2. c4 {[%clk 0:15:00]}  e6 {[%clk 0:15:00]} 3. Nc3 {[%clk 0:15:00]}  Bb4 {[%clk 0:15:00]} 4. e3 {[%clk 0:15:00]}  O-O {[%clk 0:15:00]} 5. Ne2 {[%clk 0:15:00]}  d5 {[%clk 0:15:00]} 6. a3 {[%clk 0:15:41]}  Bd6 {[%clk 0:15:30]} 7. c5 {[%clk 0:15:41]}  Be7 {[%clk 0:15:30]} 8. b4 {[%clk 0:15:41]}  c6 {[%clk 0:15:30]} 9. Ng3 {[%clk 0:15:41]}  b6 {[%clk 0:15:30]} 10. Bd2 {[%clk 0:15:41]}  a5 {[%clk 0:15:30]} 11. Rb1 {[%clk 0:14:39]}  axb4 {[%clk 0:14:38]} 12. axb4 {[%clk 0:14:39]}  Nbd7 {[%clk 0:12:53]} 13. Ra1 {[%clk 0:13:53]}  Rxa1 {[%clk 0:10:50]} 14. Qxa1 {[%clk 0:13:53]}  h5 {[%clk 0:10:50]} 15. Bd3 {[%clk 0:13:53]}  h4 {[%clk 0:10:50]} 16. Nge2 {[%clk 0:13:53]}  h3 {[%clk 0:10:21]} 17. g3 {[%clk 0:11:35]}  e5 {[%clk 0:07:57]} 18. O-O {[%clk 0:11:35]}  e4 {[%clk 0:07:57]} 19. Bc2 {[%clk 0:10:19]}  Nh7 {[%clk 0:06:36]} 20. f4 {[%clk 0:09:27]}  exf3 {[%clk 0:06:15]} 21. Rxf3 {[%clk 0:09:27]}  Ng5 {[%clk 0:06:15]} 22. Rf1 {[%clk 0:06:22]}  Nf6 {[%clk 0:05:29]} 23. Qa7 {[%clk 0:06:22]}  Bg4 {[%clk 0:05:20]} 24. Bc1 {[%clk 0:04:30]}  Nfe4 {[%clk 0:05:20]} 25. Nxe4 {[%clk 0:04:30]}  Nxe4 {[%clk 0:03:35]} 26. Nf4 {[%clk 0:04:02]}  bxc5 {[%clk 0:03:35]} 27. bxc5 {[%clk 0:04:02]}  Bg5 {[%clk 0:03:35]} 28. Nd3 {[%clk 0:04:02]}  Be2 {[%clk 0:03:35]} 29. Re1 {[%clk 0:03:10]}  Bxd3 {[%clk 0:02:24]} 30. Bxd3 {[%clk 0:03:10]}  Qf6 {[%clk 0:02:24]} 31. Qa2 {[%clk 0:03:10]}  Qe6 {[%clk 0:02:24]} 32. Qe2 {[%clk 0:02:15]}  g6 {[%clk 0:01:42]} 33. Qf3 {[%clk 0:02:15]}  Kg7 {[%clk 0:01:42]} 34. Rf1 {[%clk 0:02:15]}  Rb8 {[%clk 0:01:42]} 35. g4 {[%clk 0:02:15]}  Rh8 {[%clk 0:00:37]} 36. Bxe4 {[%clk 0:00:43]}  dxe4 {[%clk 0:00:37]} 37. d5 {[%clk 0:00:43]}  cxd5 {[%clk 0:00:37]} 38. Bb2+ {[%clk 0:00:43]}  f6 {[%clk 0:00:37]} 39. Qg3 {[%clk 0:00:43]}  Rh4 {[%clk 0:00:37]} 40. Kh1 {[%clk 0:00:43]}  Rxg4 {[%clk 0:00:37]} 41. Qc7+ {[%clk 0:00:43]}  Qf7 {[%clk 0:00:37]} 42. Qd6 {[%clk 0:00:43]}  Rg2 {[%clk 0:00:29]} 43. Bd4 {[%clk 0:00:36]}  Rc2 {[%clk 0:00:29]} 44. c6 {[%clk 0:00:36]}  Kh6 {[%clk 0:00:29]} 45. Rg1 {[%clk 0:00:36]}  Qe8 {[%clk 0:00:29]} 46. Qg3 {[%clk 0:00:36]}  Qe6 {[%clk 0:00:29]} 47. Qb8 {[%clk 0:00:36]}  Kh5 {[%clk 0:00:29]} 48. c7 {[%clk 0:00:36]}  Qf5 {[%clk 0:00:29]} 49. Qh8+ {[%clk 0:00:36]}  Bh6 {[%clk 0:00:29]} 0-1


[Site "http://www.Chess.com"]

[Event "FIDE World Rapid Chess Championship 2021"]
[White "Fedoseev, Vladimir"]
[Black "Gelfand, Boris"]
[WhiteFideId "24130737"]
[BlackFideId "2805677"]
[WhiteElo "2692"]
[BlackElo "2648"]
[Result "1/2-1/2"]
[Round "07"]
[TimeControl "900+10"]
[Date "2021.12.27"]
[WhiteClock "0:00:20"]
[BlackClock "0:00:37"]

1. d4 {[%clk 0:15:00]}  Nf6 {[%clk 0:15:00]} 2. c4 {[%clk 0:15:00]}  e6 {[%clk 0:15:00]} 3. Nf3 {[%clk 0:15:00]}  d5 {[%clk 0:15:00]} 4. Nc3 {[%clk 0:15:00]}  c6 {[%clk 0:15:00]} 5. e3 {[%clk 0:15:00]}  Nbd7 {[%clk 0:15:00]} 6. Qc2 {[%clk 0:15:00]}  Bd6 {[%clk 0:15:00]} 7. Bd3 {[%clk 0:15:00]}  O-O {[%clk 0:15:00]} 8. O-O {[%clk 0:15:42]}  Re8 {[%clk 0:16:12]} 9. e4 {[%clk 0:15:42]}  dxc4 {[%clk 0:16:12]} 10. Bxc4 {[%clk 0:15:42]}  e5 {[%clk 0:16:12]} 11. Rd1 {[%clk 0:15:42]}  exd4 {[%clk 0:16:30]} 12. Nxd4 {[%clk 0:13:12]}  Qc7 {[%clk 0:16:30]} 13. g3 {[%clk 0:13:09]}  Ne5 {[%clk 0:15:08]} 14. Be2 {[%clk 0:13:09]}  Bh3 {[%clk 0:15:08]} 15. Bf4 {[%clk 0:13:09]}  Rad8 {[%clk 0:14:02]} 16. Rac1 {[%clk 0:10:44]}  Qe7 {[%clk 0:10:56]} 17. Be3 {[%clk 0:10:44]}  Kh8 {[%clk 0:11:03]} 18. f3 {[%clk 0:09:26]}  Ng6 {[%clk 0:07:22]} 19. Bf1 {[%clk 0:09:26]}  Bc8 {[%clk 0:07:22]} 20. Kh1 {[%clk 0:08:38]}  h6 {[%clk 0:06:39]} 21. Bg2 {[%clk 0:08:38]}  h5 {[%clk 0:05:38]} 22. Qf2 {[%clk 0:06:50]}  h4 {[%clk 0:04:15]} 23. g4 {[%clk 0:04:51]}  Bxg4 {[%clk 0:04:15]} 24. fxg4 {[%clk 0:04:51]}  Nxg4 {[%clk 0:04:15]} 25. Qe2 {[%clk 0:04:51]}  Nxe3 {[%clk 0:04:15]} 26. Qxe3 {[%clk 0:04:51]}  Bf4 {[%clk 0:04:15]} 27. Qf2 {[%clk 0:04:51]}  Bxc1 {[%clk 0:04:15]} 28. Rxc1 {[%clk 0:04:51]}  Ne5 {[%clk 0:04:15]} 29. Rf1 {[%clk 0:04:50]}  Qg5 {[%clk 0:03:33]} 30. Bh3 {[%clk 0:03:10]}  Rd6 {[%clk 0:02:22]} 31. Rg1 {[%clk 0:03:10]}  Qf6 {[%clk 0:02:22]} 32. Nf5 {[%clk 0:01:43]}  g6 {[%clk 0:02:05]} 33. Rg5 {[%clk 0:01:43]}  Qxg5 {[%clk 0:02:05]} 34. Nxd6 {[%clk 0:01:43]}  Re7 {[%clk 0:02:05]} 35. Ne2 {[%clk 0:01:43]}  Kh7 {[%clk 0:02:05]} 36. Ng1 {[%clk 0:01:43]}  Nd3 {[%clk 0:01:01]} 37. Qd4 {[%clk 0:00:56]}  Nf4 {[%clk 0:01:01]} 38. Bf1 {[%clk 0:00:56]}  Ne6 {[%clk 0:01:01]} 39. Qf2 {[%clk 0:00:56]}  Qf4 {[%clk 0:01:01]} 40. Qxf4 {[%clk 0:00:56]}  Nxf4 {[%clk 0:01:01]} 41. Nf3 {[%clk 0:00:56]}  f6 {[%clk 0:01:01]} 42. Kg1 {[%clk 0:00:56]}  g5 {[%clk 0:01:01]} 43. e5 {[%clk 0:00:56]}  fxe5 {[%clk 0:01:01]} 44. Nxg5+ {[%clk 0:00:16]}  Kg6 {[%clk 0:00:37]} 45. Nge4 {[%clk 0:00:20]} 1/2-1/2


[Site "http://www.Chess.com"]

[Event "FIDE World Rapid Chess Championship 2021"]
[White "Nakamura, Hikaru"]
[Black "Anton Guijarro, David"]
[WhiteFideId "2016192"]
[BlackFideId "2285525"]
[WhiteElo "2836"]
[BlackElo "2627"]
[Result "1/2-1/2"]
[Round "07"]
[TimeControl "900+10"]
[Date "2021.12.27"]
[WhiteClock "0:03:45"]
[BlackClock "0:01:01"]

1. d4 {[%clk 0:15:00]}  d5 {[%clk 0:15:00]} 2. c4 {[%clk 0:15:00]}  e6 {[%clk 0:15:00]} 3. Nc3 {[%clk 0:15:00]}  Bb4 {[%clk 0:15:00]} 4. cxd5 {[%clk 0:15:00]}  exd5 {[%clk 0:15:11]} 5. Bf4 {[%clk 0:15:27]}  c5 {[%clk 0:15:11]} 6. e3 {[%clk 0:15:27]}  c4 {[%clk 0:15:11]} 7. Ne2 {[%clk 0:15:27]}  Nc6 {[%clk 0:14:52]} 8. a3 {[%clk 0:15:27]}  Ba5 {[%clk 0:14:52]} 9. b4 {[%clk 0:15:27]}  cxb3 {[%clk 0:14:52]} 10. Qxb3 {[%clk 0:15:27]}  Be6 {[%clk 0:14:15]} 11. f3 {[%clk 0:13:17]}  Nf6 {[%clk 0:14:15]} 12. Kf2 {[%clk 0:13:01]}  O-O {[%clk 0:11:35]} 13. Na4 {[%clk 0:13:01]}  Nh5 {[%clk 0:11:35]} 14. h4 {[%clk 0:11:20]}  b6 {[%clk 0:09:55]} 15. g4 {[%clk 0:11:09]}  Nxf4 {[%clk 0:09:55]} 16. Nxf4 {[%clk 0:11:09]}  Qd6 {[%clk 0:09:55]} 17. Qb2 {[%clk 0:11:09]}  Rac8 {[%clk 0:07:23]} 18. Ba6 {[%clk 0:08:55]}  Rc7 {[%clk 0:07:23]} 19. Rac1 {[%clk 0:08:55]}  Ne7 {[%clk 0:07:23]} 20. Rxc7 {[%clk 0:08:55]}  Qxc7 {[%clk 0:07:23]} 21. Rc1 {[%clk 0:08:55]}  Qd6 {[%clk 0:07:22]} 22. Bd3 {[%clk 0:07:15]}  f5 {[%clk 0:07:22]} 23. g5 {[%clk 0:06:21]}  Ng6 {[%clk 0:06:00]} 24. Nxg6 {[%clk 0:06:21]}  Qh2+ {[%clk 0:05:59]} 25. Kf1 {[%clk 0:04:24]}  Qh1+ {[%clk 0:03:18]} 26. Kf2 {[%clk 0:04:33]}  Qh2+ {[%clk 0:03:18]} 27. Kf1 {[%clk 0:04:33]}  Qh1+ {[%clk 0:01:01]} 28. Kf2 {[%clk 0:03:45]} 1/2-1/2


[Site "http://www.Chess.com"]